Cogmind - Beta 15 @@@ ROGUE MODE // 2025.06.29 @ 07:58:58 Player: Sandwich Result: Self-destructed Performance ------------- Evolutions (8) 4000 Regions Visited (13) 2600 Robots Destroyed (168) 840 Value Destroyed (7389) 7389 Prototype IDs (25) 500 Alien Tech Used (0) 0 Bonus (821) 821 TOTAL SCORE: 16150 Bonus ------- High Alert Combat Kills 115 Follower Combat Kills 206 Scanned by Researcher 500 Cogmind --------- Core Integrity 797/1450 Matter 293/300 Energy 261/300 System Corruption 21% Temperature Cool (27) Movement Hovering (199) Ox2 Location -2/Research Parts ------- > --- POWER (3) -------- Enhanced Nuclear Core > --- PROPULSION (7) --- Hovering Antigrav-QT Exoskeleton > --- UTILITY (9) ------ Scrap Engine High-capacity Storage Unit Long-range Sensor Array Advanced Signal Interpreter Advanced Hacking Suite > --- WEAPON (4) ------- Rapid Electro Gamma Construct/G > --- INVENTORY (20) --- Biometal Leg Quantum Shading Machine Advanced Sensor Array Actuator Array Advanced Reaction Control System Phase Shifter Phase Shifter Light Regenerative Plating SHELL Armor Experimental Thermal Defense Suite Gamma Bomb Array Fusion Bomb Launcher Peak State ------------ > --- POWER ------------ Enhanced Nuclear Core Multi-Particle Reactor > --- PROPULSION ------- Hovering Antigrav-QT Exoskeleton > --- UTILITY ---------- Armored Scrap Engine High-capacity Storage Unit Quantum Shading Machine Nanoactuators Advanced Reaction Control System Hacking Suite Advanced Hacking Suite Advanced System Shield > --- WEAPON ----------- Katana Katana Katana Force Lance > --- INVENTORY -------- Enhanced Nuclear Core Advanced Sensor Array Microactuators Actuator Array Advanced Reaction Control System Phase Shifter Light Regenerative Plating Heavy Regenerative Plating Heavy Regenerative Plating SHELL Armor Fusion Bomb Launcher Thunder Hammer Chainsword Power Sword Force Lance [Rating: 162] Favorites ----------- Power Constructs Engine Deuterium Engine Power Core Enhanced Nuclear Core Reactor Constructs Propulsion Light Treads Treads Light Treads Wheel Wheel Hover Unit Constructs Utility High-capacity Storage Unit Device Armored Scrap Engine Storage High-capacity Storage Unit Processor Advanced Signal Interpreter Hackware Advanced Hacking Suite Protection Light Armor Plating Weapon Katana Ballistic Gun Shotgun Launcher Fusion Bomb Launcher Impact Weapon Heavy Hammer Slashing Weapon Katana Piercing Weapon Force Lance Build | -11 -10 -10 -9 -9 -8 -7 -7 -7 -5 -4 -3 -3 -2 ------- Run | Yrd Mat Min Mat Min Mat Fac Sto Rec Fac Fac Res Tes Res Slots Evolved 16 | . . . 2 . 2 2 . . 4 2 2 . 2 Power 2 | . . . . . . . . . 1 . . . 1 Propulsion 5 | . . . . . 1 1 . . 1 1 1 . . Utility 7 | . . . 1 . 1 . . . 2 1 1 . 1 Weapon 2 | . . . 1 . . 1 . . . . . . . Parts Attached 116 | 5 . 2 13 1 16 18 7 2 7 3 7 16 19 Power 11 | 1 . . 1 1 1 2 1 . . . . . 4 Engine 4 | 1 . . 1 1 . 1 . . . . . . . Core 5 | . . . . . 1 1 1 . . . . . 2 Reactor 2 | . . . . . . . . . . . . . 2 Propulsion 20 | 2 . . 2 . 4 7 4 1 . . . . . Treads 16 | 1 . . 1 . 2 7 4 1 . . . . . Leg . | . . . . . . . . . . . . . . Wheel 4 | 1 . . 1 . 2 . . . . . . . . Hover . | . . . . . . . . . . . . . . Flight . | . . . . . . . . . . . . . . Utility 57 | 1 . 2 4 . 6 3 2 1 5 2 5 13 13 Device 24 | . . . 1 . 3 3 1 1 2 1 1 7 4 Storage 5 | 1 . 1 2 . . . . . . . . 1 . Processor 2 | . . . . . . . . . . . 1 . 1 Hackware 3 | . . . . . . . . . . . . 1 2 Protection 23 | . . 1 1 . 3 . 1 . 3 1 3 4 6 Artifact . | . . . . . . . . . . . . . . Weapon 28 | 1 . . 6 . 5 6 . . 2 1 2 3 2 Energy Gun . | . . . . . . . . . . . . . . Energy Cannon . | . . . . . . . . . . . . . . Ballistic Gun 14 | 1 . . 6 . 5 2 . . . . . . . Ballistic Cannon . | . . . . . . . . . . . . . . Launcher 2 | . . . . . . . . . 1 . . 1 . Special Weapon . | . . . . . . . . . . . . . . Impact Weapon 2 | . . . . . . . . . 1 . . . 1 Slashing Weapon 8 | . . . . . . 4 . . . 1 2 1 . Piercing Weapon 2 | . . . . . . . . . . . . 1 1 Special Melee Weapon . | . . . . . . . . . . . . . . Unidentified Prototypes 13 | . . . . . . . 1 1 . . . 7 4 Parts Lost 66 | . . . . . 8 16 3 1 1 2 7 . 28 Power 8 | . . . . . 1 2 . . . . . . 5 Propulsion 14 | . . . . . . 7 2 1 . . 1 . 3 Utility 24 | . . . . . 3 3 1 . . 1 4 . 12 Weapon 20 | . . . . . 4 4 . . 1 1 2 . 8 Highest Loss Streak 10 | . . . . . 2 5 1 1 1 2 4 . 10 To Critical Strikes 1 | . . . . . . . . . . . . . 1 Average Backups 16 | 2 5 7 13 20 19 17 19 15 17 18 17 16 14 Power 1 | . . . . . . 2 3 3 2 2 2 2 . Propulsion 4 | 1 2 3 7 11 10 9 9 3 1 1 1 . . Utility 5 | . . 1 2 3 2 3 4 4 10 11 10 8 9 Weapon 3 | 1 2 3 3 6 5 2 3 3 4 4 3 5 3 Tool/Special . | . . . . . . . . . . . . . . Unused Backups 49 | . . . 9 . 5 1 11 9 2 1 . 7 4 Power 5 | . . . . . 1 . 3 . 1 . . . . Propulsion 25 | . . . 5 . . 1 8 9 . . . 1 1 Utility 11 | . . . . . 2 . . . 1 1 . 5 2 Weapon 8 | . . . 4 . 2 . . . . . . 1 1 Tool/Special . | . . . . . . . . . . . . . . Average Slot Usage (%) 76 | . 71 72 98 100 99 94 98 75 58 56 56 59 56 Engine 3 | . 14 14 11 11 3 4 . 2 1 . . . . Core 2 | . . . . . 5 2 7 4 3 5 2 . 1 Treads 10 | . 14 14 11 11 17 26 29 8 . 1 1 . . Wheel 2 | . 14 14 11 11 9 2 . . . . . . . Device 14 | . . . 10 11 12 22 15 15 11 15 16 18 14 Storage 6 | . 14 14 11 11 9 7 7 7 5 5 4 4 4 Hackware 1 | . . . . . . . . . . . . 3 6 Protection 4 | . . 1 11 11 13 . 5 . 4 4 5 4 2 Ballistic Gun 7 | . 14 14 32 33 27 6 . . . . . . . Slashing Weapon 15 | . . . . . . 20 30 30 17 14 14 14 10 Peak Build Rating 162 | 5 5 6 18 20 25 38 41 61 89 94 125 148 162 Average Rating 66 | 3 5 5 15 19 23 33 39 53 82 93 110 133 139 On Entrance 45 | . 5 5 6 18 20 23 34 41 61 79 94 111 141 Naked Turns . | . . . . . . . . . . . . . . Heaviest Build 128 | 12 12 20 98 62 63 62 63 63 98 100 105 97 128 Greatest Support 192 | 20 10 10 10 10 16 80 80 108 146 192 192 120 157 Greatest Overweight (x) 9 | 1 1 1 9 6 6 3 1 1 1 . . 1 2 Average Overweight (x) 1 | . 1 1 4 5 4 . . . . . . . . Largest Inventory Capacity 25 | 8 8 10 25 20 20 20 20 20 20 20 20 20 20 Average Capacity 19 | 6 8 8 17 20 20 20 20 20 20 20 20 20 20 Most Carried 20 | 4 7 9 20 20 20 20 20 20 20 20 20 20 20 Average Carried 16 | 2 5 7 13 20 19 17 19 15 18 19 17 19 17 Final Capacity 20 | 8 8 10 20 20 20 20 20 20 20 20 20 20 20 Final Carried 20 | 4 7 9 20 20 17 20 20 14 20 20 16 20 14 Scrap Engine Consumption 177 | . . . . . . . . 48 33 7 18 13 58 Constructs Created 4 | . . . . . . . . 2 . . . . 2 Constructs Modified 71 | . . . . . . . . 17 13 3 10 6 22 Class Distribution -------------------- 18% | Mutant 14% | Tank 14% | Commander-Construct 13% | Construct 12% | Gladiator 6% | Commander-Mutant 6% | Scavenger-Gladiator 5% | Hacker-Gladiator 5% | Scavenger-Tank Dominant Class ---------------- Mutant | -10/Materials Mutant | -10/Mines Tank | -9/Materials Tank | -9/Mines Scavenger-Tank | -8/Materials Scavenger-Gladiator | -7/Factory Gladiator | -7/Storage Commander-Construct | -7/Recycling Construct | -5/Factory Mutant | -4/Factory Mutant | -3/Research Construct | -3/Testing Mutant | -2/Research Resources | -11 -10 -10 -9 -9 -8 -7 -7 -7 -5 -4 -3 -3 -2 ----------- Run | Yrd Mat Min Mat Min Mat Fac Sto Rec Fac Fac Res Tes Res Matter Collected 3106 | 230 72 27 368 27 797 491 69 87 104 30 109 178 517 Remotely 758 | . . . . . 359 399 . . . . . . . Salvage Created 7687 | . 72 . 585 33 994 1123 626 357 661 99 904 485 1748 Parts 440 | . 11 . 43 3 62 70 29 19 39 3 65 28 68 Haulers Intercepted 2 | . . . 1 . . . 1 . . . . . . Recyclers Shooed 2 | . 1 . . . . . . . . . . . 1 Parts Field Recycled . | . . . . . . . . . . . . . . Retrieved Matter . | . . . . . . . . . . . . . . Parts Self-Destructed . | . . . . . . . . . . . . . . Prevented . | . . . . . . . . . . . . . . Kills | -11 -10 -10 -9 -9 -8 -7 -7 -7 -5 -4 -3 -3 -2 ------- Run | Yrd Mat Min Mat Min Mat Fac Sto Rec Fac Fac Res Tes Res Combat Hostiles Destroyed 156 | . 5 . 12 2 31 23 11 4 20 2 17 6 23 Melee 87 | . . . . . . 15 11 4 13 2 17 6 19 Guns 58 | . 5 . 12 2 31 8 . . . . . . . AOE 7 | . . . . . . . . . 5 . . . 2 Classes Destroyed 15 | . 1 . 4 . 1 3 . 2 1 . . 2 1 Worker 2 | . . . . . 1 . . . . . . 1 . Builder 1 | . . . . . . . . . . . . 1 . Hauler 2 | . . . 1 . . . 1 . . . . . . Recycler 3 | . . . . . . . . 1 . . . . 2 Watcher 2 | . . . 1 . . . . . . 1 . . . Swarmer 58 | . 5 . . 2 13 3 3 . 14 2 8 . 8 Grunt 41 | . . . 8 . 11 11 3 . . . . 3 5 Brawler 1 | . . . . . . . . . 1 . . . . Duelist 3 | . . . . . . 1 . . 1 . . 1 . Researcher 2 | . . . . . . . . . . . . 2 . Sentry 27 | . . . 4 . 7 3 4 3 1 . 2 . 3 Hunter 6 | . . . . . . 2 1 . 1 . . . 2 Programmer 18 | . . . . . . 3 . . 2 . 7 2 4 Q-Series 1 | . . . . . . . . . . . . . 1 Scrapper 1 | . . . . . . . . 1 . . . . . Best Kill Streak 8 | . 5 . 6 2 7 6 4 1 5 2 4 4 8 Combat Bots Only 8 | . 5 . 6 2 7 6 4 1 5 2 4 4 8 Max Kills in Single Turn 3 | . 1 . 2 1 2 1 1 1 3 1 1 1 2 Gunslinging 1 | . . . 1 . 1 . . . . . . . . Exploded 3 | . . . . . . . . . 3 . . . 2 Melee 1 | . . . . . . 1 1 1 1 1 1 1 1 Uniques/NPCs Destroyed . | . . . . . . . . . . . . . . Combat | -11 -10 -10 -9 -9 -8 -7 -7 -7 -5 -4 -3 -3 -2 -------- Run | Yrd Mat Min Mat Min Mat Fac Sto Rec Fac Fac Res Tes Res Hostile Shots Fired 1384 | . 27 1 31 . 114 189 142 30 122 8 253 46 421 Missed 422 | . 5 . 5 . 20 53 48 10 34 4 105 22 116 Hits 962 | . 22 1 26 . 94 136 94 20 88 4 148 24 305 Melee 16 | . . . . . . 3 . . 12 . . 1 . Projectile 946 | . 22 1 26 . 94 133 94 20 76 4 148 23 305 AOE 40 | . . . . . . . . . . . . . 40 Critical Strikes 32 | . . . . . 6 5 . . 5 . 5 1 10 Actively Blocked 1 | . . . . . 1 . . . . . . . . Part Disruptions 2 | . . . . . . . . . . . . . 2 Damage Taken 19001 | . 179 13 343 7 1347 1654 1037 209 1456 414 3101 526 8715 Core 1668 | . 52 . 39 7 76 157 177 63 120 . 219 105 653 Absorbed by Shields . | . . . . . . . . . . . . . . Redirected to Shielding 308 | . . . . . 53 . . . . . . . 255 Ignored by Resistances 625 | . . . . . . . . . 355 24 246 . . Regen/Repaired (Parts) 3045 | . . . . . . . . 44 213 499 417 544 1328 Core Remaining (%) 82 | 100 . 79 . 88 86 . . 43 88 100 . 75 . Volleys Fired 152 | . 18 . 29 3 60 31 . . 2 . . 3 6 Largest 4 | . 1 . 3 3 3 4 . . 1 . . 1 1 Hottest 91 | . 20 . 69 69 71 91 . . 33 . . 52 78 Shots Fired 392 | . 18 . 87 5 176 95 . . 2 . . 3 6 Gun 385 | . 18 . 87 5 176 95 . . . . . . 4 Cannon . | . . . . . . . . . . . . . . Launcher 7 | . . . . . . . . . 2 . . 3 2 Special . | . . . . . . . . . . . . . . Kinetic 381 | . 18 . 87 5 176 95 . . . . . . . Thermal . | . . . . . . . . . . . . . . Explosive 7 | . . . . . . . . . 2 . . 3 2 Electromagnetic 4 | . . . . . . . . . . . . . 4 Robot Hit Streak 14 | . 9 . 14 2 12 9 . . 7 . . 9 11 Robot Miss Streak 6 | . 4 . 2 3 6 3 . . . . . . 1 Penetration Max . | . . . . . . . . . . . . . . Secondary Targets 14 | . . . 3 1 7 3 . . . . . . . Max Gunslinging Chain 1 | . . . 1 1 1 1 . . . . . . . Shots Hit Robots 652 | . 11 . 65 3 121 112 34 16 64 4 78 24 120 Core Hits 274 | . 6 . 27 2 65 40 17 6 27 3 27 14 40 Critical Kills 3 | . . . . . 2 . . . . . . . 1 Critical Parts Destroyed 12 | . . . . . 2 . . . 2 . 2 . 6 Critical Strikes 61 | . . . 1 . 4 3 5 2 11 . 10 3 22 Destroy 5 | . . . 1 . 4 . . . . . . . . Smash 12 | . . . . . . . . . 3 . 2 . 7 Sever 35 | . . . . . . 3 5 2 8 . 8 . 9 Impale 9 | . . . . . . . . . . . . 3 6 Melee Attacks 584 | . . . . . . 68 51 19 94 5 127 43 177 Impact 60 | . . . . . . . . . 14 . 15 . 31 Slashing 461 | . . . . . . 68 51 19 80 5 112 19 107 Piercing 63 | . . . . . . . . . . . . 24 39 Sneak Attacks 24 | . . . . . . 4 2 7 2 . 1 3 5 Combat Hostiles 13 | . . . . . . 2 . 6 2 . 1 . 2 Follow-up Attacks 129 | . . . . . . 14 11 5 29 . 30 10 30 Damage Inflicted 19405 | . 175 . 809 42 1853 2616 1127 756 2357 144 2839 1334 5353 Guns 3832 | . 175 . 809 42 1853 928 . . . . . . 25 Cannons . | . . . . . . . . . . . . . . Explosions 974 | . . . . . . . . . 341 . . 414 219 Melee 14599 | . . . . . . 1688 1127 756 2016 144 2839 920 5109 Ramming . | . . . . . . . . . . . . . . Kinetic 3807 | . 175 . 809 42 1853 928 . . . . . . . Thermal . | . . . . . . . . . . . . . . Explosive 974 | . . . . . . . . . 341 . . 414 219 Electromagnetic 25 | . . . . . . . . . . . . . 25 Impact 1730 | . . . . . . . . . 397 . 348 . 985 Slashing 10859 | . . . . . . 1688 1127 756 1619 144 2491 370 2664 Piercing 2010 | . . . . . . . . . . . . 550 1460 Highest Corruption 20 | . 2 2 . . 4 3 3 3 12 1 10 12 20 Average Corruption 4 | . 2 2 . . 3 2 3 3 8 1 9 10 7 Corruption Purged . | . . . . . . . . . . . . . . Corruption Blocked . | . . . . . . . . . . . . . . Effects 162 | . . 1 . . 20 18 6 42 15 1 14 23 22 Message Errors 39 | . . . . . 2 5 2 11 3 1 2 9 4 Matter Fused 40 | . . 1 . . 6 5 1 10 2 . 3 6 6 Heat Flow Errors 20 | . . . . . 4 1 . 7 2 . 1 3 2 Energy Discharges 18 | . . . . . 1 2 . 6 2 . 2 1 4 Parts Rejected 3 | . . . . . 1 1 . . . . 1 . . Data Loss (minor) 21 | . . . . . . 3 2 6 4 . 1 2 3 Data Loss (major) 6 | . . . . . 1 . 1 . . . 2 . 2 Misfires 1 | . . . . . 1 . . . . . . . . Alerts 9 | . . . . . 3 1 . 2 . . 1 1 1 Misdirections 4 | . . . . . . . . . 2 . 1 1 . Weapon Failures 1 | . . . . . 1 . . . . . . . . Overload Shots . | . . . . . . . . . . . . . . Overflow Damage 1156 | . . . . . . 38 3 . 139 . 225 247 504 Projectiles . | . . . . . . . . . . . . . . Explosions 106 | . . . . . . . . . . . . 106 . Melee 1050 | . . . . . . 38 3 . 139 . 225 141 504 Knockbacks 11 | . . . . . . . . . 3 . 2 . 6 Impact 9 | . . . . . . . . . 3 . 2 . 4 Kinetic . | . . . . . . . . . . . . . . Secondary 2 | . . . . . . . . . . . . . 2 Self-Inflicted Damage 330 | . . . . . . . . . . . . 147 183 Shots 5 | . . . . . . . . . . . . 3 2 Rammed . | . . . . . . . . . . . . . . Targets Rammed . | . . . . . . . . . . . . . . Kicked . | . . . . . . . . . . . . . . Crushed . | . . . . . . . . . . . . . . Highest Temperature 292 | . . . 57 12 292 228 . 195 173 . 216 237 189 Average Temperature 72 | . . . 23 8 99 84 . 76 78 . 76 90 26 Received Heat Transfer 2087 | . . . 135 . 585 390 279 75 54 . 365 51 153 Effects 1 | . . . . . 1 . . . . . . . . Energy Bleed 1 | . . . . . 1 . . . . . . . . Siege Activations . | . . . . . . . . . . . . . . Martial Activations . | . . . . . . . . . . . . . . Shielding Activations . | . . . . . . . . . . . . . . Robots Disrupted . | . . . . . . . . . . . . . . Combat Hostiles . | . . . . . . . . . . . . . . Robots Corrupted 4 | . . . . . . . . . 2 . . . 2 Combat Hostiles 4 | . . . . . . . . . 2 . . . 2 Parts Fried 7 | . . . . . . . . . 2 . 1 . 4 Impact Corruptions 17 | . . . . . . . . . 5 . 4 . 8 Robots Melted . | . . . . . . . . . . . . . . Combat Hostiles . | . . . . . . . . . . . . . . Parts Melted 1 | . . . . . . . . 1 . . . . . Heat Transferred . | . . . . . . . . . . . . . . Parts Sabotaged . | . . . . . . . . . . . . . . Parts Stolen . | . . . . . . . . . . . . . . Parts Stripped . | . . . . . . . . . . . . . . Power Chain Reactions . | . . . . . . . . . . . . . . Alert | -11 -10 -10 -9 -9 -8 -7 -7 -7 -5 -4 -3 -3 -2 ------- Run | Yrd Mat Min Mat Min Mat Fac Sto Rec Fac Fac Res Tes Res Maximum Alert Level 2 | . . . . . 1 1 1 . 2 1 2 2 1 Low Security (%) 75 | 100 100 100 100 100 63 87 90 100 35 76 46 . 74 Level 1 22 | . . . . . 36 12 9 . 56 23 21 99 25 Level 2 2 | . . . . . . . . . 7 . 32 . . Level 3 . | . . . . . . . . . . . . . . Level 4 . | . . . . . . . . . . . . . . Level 5 . | . . . . . . . . . . . . . . High Security . | . . . . . . . . . . . . . . Max Security . | . . . . . . . . . . . . . . Peak Influence 628 | . 120 39 130 104 259 237 216 76 454 226 628 427 306 Initial 328 | . . 39 . . . 109 66 76 7 216 54 328 240 Average 118 | . 49 10 37 41 139 85 139 8 238 167 248 330 147 Influence Increases 5659 | . 143 . 345 104 816 666 350 119 894 77 883 409 853 Destroy 0b10 Robot/C 3320 | . 100 . 240 80 620 460 220 80 520 40 340 160 460 Destroy 0b10 Robot/NC 60 | . . . 10 . 5 . 5 5 10 5 . 10 10 Destroy Leader 690 | . 10 . 74 10 140 120 72 . 72 2 80 20 90 Allied During Kill 125 | . . . . 14 5 . . 34 72 . . . . Successful Hack 64 | . 3 . 21 . . 8 8 . 4 . . . 20 Disable Machine 105 | . . . . . 15 . . . 30 . . 45 15 Destroy Structure 245 | . . . . . 1 3 . . 6 . 28 84 123 Partial Spotted 75 | . . . . . . . . . 15 . 15 . 45 Lose Combat Pursuer 975 | . 30 . . . 30 75 45 . 165 30 420 90 90 Influence Decreases 5444 | . 43 100 345 104 574 762 300 297 470 416 402 566 1065 Entered New Map 1123 | . . 61 . . . 133 80 120 11 226 49 256 187 Time Decay 3472 | . 43 39 277 104 389 475 190 175 419 170 283 310 598 Lost Part 624 | . . . . . 70 154 30 . . 20 70 . 280 Lost Ally 42 | . . . . . . . . 2 40 . . . . Purge Threat 183 | . . . 68 . 115 . . . . . . . . Squads Dispatched 30 | . 1 . 2 . 4 5 1 . 3 . 5 4 5 Investigation 3 | . 1 . 1 . . . . . . . 1 . . Extermination 15 | . . . . . . 4 . . 3 . 2 1 5 Reinforcement 12 | . . . 1 . 4 1 1 . . . 2 3 . Assault . | . . . . . . . . . . . . . . Garrison . | . . . . . . . . . . . . . . Intercept . | . . . . . . . . . . . . . . Searches Triggered . | . . . . . . . . . . . . . . Construction Impeded 1 | . . . . . . . . . . . . 1 . Haulers Reinforced 1 | . . . . . . 1 . . . . . . . Active Scanning Responses . | . . . . . . . . . . . . . . Cargo Convoy Interrupts . | . . . . . . . . . . . . . . Stealth | -11 -10 -10 -9 -9 -8 -7 -7 -7 -5 -4 -3 -3 -2 --------- Run | Yrd Mat Min Mat Min Mat Fac Sto Rec Fac Fac Res Tes Res Distress Signals 16 | . . . 3 . 2 . 1 1 2 . 5 1 1 Communications Jammed . | . . . . . . . . . . . . . . Distress Signals . | . . . . . . . . . . . . . . Times Spotted 285 | . 9 5 17 4 41 29 15 4 35 13 55 17 41 Peak Tracking Total 11 | . 6 5 6 4 7 7 7 2 5 9 8 5 11 Tactical Retreats 31 | . 1 2 . . 2 1 3 . 7 1 9 2 3 Traps | -11 -10 -10 -9 -9 -8 -7 -7 -7 -5 -4 -3 -3 -2 ------- Run | Yrd Mat Min Mat Min Mat Fac Sto Rec Fac Fac Res Tes Res Traps Triggered 12 | . 2 . 1 . 3 . . . 3 1 1 . 1 Indirectly . | . . . . . . . . . . . . . . Trap Hack Attempts . | . . . . . . . . . . . . . . Triggered . | . . . . . . . . . . . . . . Disarmed . | . . . . . . . . . . . . . . Reprogrammed . | . . . . . . . . . . . . . . Reused . | . . . . . . . . . . . . . . Traps Extracted . | . . . . . . . . . . . . . . Installed . | . . . . . . . . . . . . . . Triggered . | . . . . . . . . . . . . . . Machines | -11 -10 -10 -9 -9 -8 -7 -7 -7 -5 -4 -3 -3 -2 ---------- Run | Yrd Mat Min Mat Min Mat Fac Sto Rec Fac Fac Res Tes Res Machines Disabled 7 | . . . . . 1 . . . 2 . . 3 1 Max in Single Turn 1 | . . . . . 1 . . . 1 . . 1 1 Machines Repaired . | . . . . . . . . . . . . . . Machines Dismantled . | . . . . . . . . . . . . . . Machines Sabotaged . | . . . . . . . . . . . . . . Overloaded Fab Kills . | . . . . . . . . . . . . . . Hacking | -11 -10 -10 -9 -9 -8 -7 -7 -7 -5 -4 -3 -3 -2 --------- Run | Yrd Mat Min Mat Min Mat Fac Sto Rec Fac Fac Res Tes Res Machines Accessed 25 | . 3 . 5 . 2 1 3 1 2 . 1 5 2 Terminals 24 | . 3 . 5 . 2 1 3 . 2 . 1 5 2 Fabricators . | . . . . . . . . . . . . . . Repair Stations . | . . . . . . . . . . . . . . Recycling Units . | . . . . . . . . . . . . . . Scanalyzers . | . . . . . . . . . . . . . . Garrison Access . | . . . . . . . . . . . . . . Total Hacks 65 | . 11 . 15 . 4 1 9 2 7 . 1 9 6 Successful 31 | . 6 . 10 . 3 1 4 2 2 . . 1 2 Failed 34 | . 5 . 5 . 1 . 5 . 5 . 1 8 4 Catastrophic 3 | . . . . . . . 2 . . . . 1 . Database Lockouts . | . . . . . . . . . . . . . . Manual 38 | . 7 . 12 . 2 1 7 . 7 . . 1 1 Terminals 63 | . 11 . 15 . 4 1 9 . 7 . 1 9 6 Fabricators . | . . . . . . . . . . . . . . Repair Stations . | . . . . . . . . . . . . . . Recycling Units . | . . . . . . . . . . . . . . Scanalyzers . | . . . . . . . . . . . . . . Garrison Access . | . . . . . . . . . . . . . . Terminal Hacks 14 | . 1 . 3 . 1 1 3 2 . . . 1 2 Record 1 | . . . . . . . . . . . . . 1 Prototype ID Bank 3 | . . . 2 . . . 1 . . . . . . Open Door 2 | . . . . . . . 1 . . . . 1 . Branch Access Points 3 | . 1 . . . . 1 1 . . . . . . Unreport Threat 2 | . . . 1 . 1 . . . . . . . . Zone Layout 1 | . . . . . . . . . . . . . 1 Release Object 2 | . . . . . . . . 2 . . . . . Fabricator Hacks . | . . . . . . . . . . . . . . Repair Station Hacks . | . . . . . . . . . . . . . . Recycling Unit Hacks . | . . . . . . . . . . . . . . Scanalyzer . | . . . . . . . . . . . . . . Garrison Access Hacks . | . . . . . . . . . . . . . . Unauthorized Hacks 17 | . 5 . 7 . 2 . 1 . 2 . . . . Terminals 17 | . 5 . 7 . 2 . 1 . 2 . . . . Botnet 10 | . 3 . 4 . 1 . 1 . 1 . . . . Skim 7 | . 2 . 3 . 1 . . . 1 . . . . Fabricators . | . . . . . . . . . . . . . . Repair Stations . | . . . . . . . . . . . . . . Recycling Units . | . . . . . . . . . . . . . . Scanalyzers . | . . . . . . . . . . . . . . Garrison Access . | . . . . . . . . . . . . . . Data Cores Recovered . | . . . . . . . . . . . . . . Used . | . . . . . . . . . . . . . . Hacking Detections 21 | . 3 . 5 . 2 . 2 . 2 . 1 4 2 Full Trace Events . | . . . . . . . . . . . . . . Feedback Events . | . . . . . . . . . . . . . . Feedback Blocked . | . . . . . . . . . . . . . . Robot Schematics Acquired . | . . . . . . . . . . . . . . Robots Built . | . . . . . . . . . . . . . . Authchips . | . . . . . . . . . . . . . . Time . | . . . . . . . . . . . . . . Total Robot Build Rating . | . . . . . . . . . . . . . . Part Schematics Acquired 2 | . . . . . . . . . . . . 2 . Parts Built . | . . . . . . . . . . . . . . Authchips . | . . . . . . . . . . . . . . Time . | . . . . . . . . . . . . . . Total Part Build Rating . | . . . . . . . . . . . . . . Parts Repaired . | . . . . . . . . . . . . . . Time . | . . . . . . . . . . . . . . Parts Recycled . | . . . . . . . . . . . . . . Recycled Matter . | . . . . . . . . . . . . . . Retrieved Matter . | . . . . . . . . . . . . . . Retrieved Components . | . . . . . . . . . . . . . . Parts Scanalyzed . | . . . . . . . . . . . . . . Part Schematics Acquired . | . . . . . . . . . . . . . . Parts Damaged . | . . . . . . . . . . . . . . Bothacking | -11 -10 -10 -9 -9 -8 -7 -7 -7 -5 -4 -3 -3 -2 ------------ Run | Yrd Mat Min Mat Min Mat Fac Sto Rec Fac Fac Res Tes Res Used RIF Installer . | . . . . . . . . . . . . . . Robots Hacked . | . . . . . . . . . . . . . . Non-combat . | . . . . . . . . . . . . . . Combat . | . . . . . . . . . . . . . . Robot Hacks Applied . | . . . . . . . . . . . . . . Relay Couplers Released . | . . . . . . . . . . . . . . Fabnet Peak Effective % . | . . . . . . . . . . . . . . Robots Rewired 8 | . . . . . . . . 8 . . . . . Allies Hacked . | . . . . . . . . . . . . . . Hacks Repelled . | . . . . . . . . . . . . . . Allies | -11 -10 -10 -9 -9 -8 -7 -7 -7 -5 -4 -3 -3 -2 -------- Run | Yrd Mat Min Mat Min Mat Fac Sto Rec Fac Fac Res Tes Res Total Allies 11 | . . . . 3 . . . 8 . . . . . Largest Group 8 | . . . . 3 3 . . 8 5 . . . . Highest-Rated Group 168 | . . . . 40 40 . . 168 132 . . . . Highest-Rated Ally 32 | . . . . 16 16 . . 32 32 . . . . Total Orders . | . . . . . . . . . . . . . . Ally Attacks 63 | . . . . 13 9 . . 31 10 . . . . Total Damage 1220 | . . . . 126 60 . . 488 546 . . . . Kills 15 | . . . . 2 . . . 4 9 . . . . Allies Corrupted . | . . . . . . . . . . . . . . Allies Melted . | . . . . . . . . . . . . . . Intel | -11 -10 -10 -9 -9 -8 -7 -7 -7 -5 -4 -3 -3 -2 ------- Run | Yrd Mat Min Mat Min Mat Fac Sto Rec Fac Fac Res Tes Res Active Infowar (turns) 5370 | . . . 1043 265 1248 1814 . . 62 . 260 . 678 Sensors 938 | . . . . . . . . . . . 260 . 678 IFF 62 | . . . . . . . . . 62 . . . . Terrain 3061 | . . . . . 1247 1814 . . . . . . . Structural 1393 | . . . 1043 265 85 . . . . . . . . Robot Analysis Total . | . . . . . . . . . . . . . . Derelict Logs Recovered 3 | . . 2 . 1 . . . . . . . . . Drone Launches . | . . . . . . . . . . . . . . Drone Recoveries . | . . . . . . . . . . . . . . Exploration | -11 -10 -10 -9 -9 -8 -7 -7 -7 -5 -4 -3 -3 -2 ------------- Run | Yrd Mat Min Mat Min Mat Fac Sto Rec Fac Fac Res Tes Res Turns Passed 12608 | 54 159 173 1046 265 1248 1815 395 2596 1151 346 744 698 1918 Spaces Moved 6942 | 39 124 166 550 149 548 906 164 719 975 254 588 588 1172 Core 1 | 1 . . . . . . . . . . . . . Treads 1759 | 10 . . . . . 682 164 282 87 104 148 . 282 Legs 831 | . . . . . . . . 383 448 . . . . Wheels 1789 | 28 124 166 550 149 548 224 . . . . . . . Hover 1218 | . . . . . . . . . 440 150 30 270 328 Flight 1344 | . . . . . . . . 54 . . 410 318 562 Fastest Speed 36 | 50 95 95 110 155 145 130 162 96 61 61 46 36 36 Average Speed 106 | 110 95 95 148 165 155 157 166 148 79 76 55 49 70 Slowest Speed 274 | 160 95 95 215 170 170 163 243 274 126 106 72 90 199 Overloaded Moves 17 | . . . . . . . . . . . 17 . . Propulsion Burnouts . | . . . . . . . . . . . . . . Robots Hopped 15 | . . . . . . . . . . . 6 . 9 Potential Cave-ins 2 | . . . . . . . . . . . . . 2 Cave-ins Triggered . | . . . . . . . . . . . . . . Exploration Rate (%) 37 | 3 29 34 60 47 59 27 21 93 32 7 21 64 25 Regions Visited 13 Branch Regions 5 Pre-discovered Areas 1 | . . 1 . . . . . . . . . . . Known Exits Taken 3 | . 1 . . . . 1 1 . . . . . . Unknown Exits Taken 10 | 1 . 1 1 1 1 . . 1 1 1 1 1 . Scrap Searched 1 | . . 1 . . . . . . . . . . . Spaces Dug 34 | . . . . . . 2 . . 3 . 14 5 10 Terrain Destroyed 127 | . . . . . . 2 . . 3 . 14 44 64 Melee 34 | . . . . . . 2 . . 3 . 14 5 10 Projectile . | . . . . . . . . . . . . . . AOE 93 | . . . . . . . . . . . . 39 54 Terrain Rammed . | . . . . . . . . . . . . . . Walls Destroyed . | . . . . . . . . . . . . . . Machines Disabled . | . . . . . . . . . . . . . . Actions | -11 -10 -10 -9 -9 -8 -7 -7 -7 -5 -4 -3 -3 -2 --------- Run | Yrd Mat Min Mat Min Mat Fac Sto Rec Fac Fac Res Tes Res Total 11239 | 47 147 180 731 164 821 1171 262 2241 1246 400 853 939 2037 Wait 3297 | . 3 9 96 11 174 148 32 1396 179 134 166 257 692 Move 6903 | 38 123 165 549 148 547 905 163 718 974 253 575 587 1158 Hop 11 | . . . . . . . . . . . 6 . 5 Pick Up 116 | 4 3 3 25 . 11 15 14 3 12 4 5 11 6 Fast Attach 48 | 5 . 1 1 1 4 7 3 1 . 1 . 15 9 Attach 59 | . . . 3 . 7 12 3 . 7 2 8 1 16 Detach 15 | . . . . . . 2 . . 4 . 1 2 6 Swap 37 | . . 1 9 . 6 . 1 1 . . 3 11 5 Drop 100 | . . 1 19 1 12 2 13 16 5 2 1 26 2 Fire 152 | . 18 . 29 3 60 31 . . 2 . . 3 6 Melee 404 | . . . . . . 49 33 11 63 4 88 24 132 Ram . | . . . . . . . . . . . . . . Kick . | . . . . . . . . . . . . . . Crush . | . . . . . . . . . . . . . . Escape Stasis 2 | . . . . . . . . . . . . 2 . Rewire 95 | . . . . . . . . 95 . . . . . Trap . | . . . . . . . . . . . . . . Miscellaneous . | . . . . . . . . . . . . . . Route ------- -11/Scrapyard -10/Materials (discovered 2 exits: *Min x2) -10/Mines -9/Materials (discovered 3 exits: *Mat x2 / [*Min]) -9/Mines -8/Materials -7/Factory (discovered 6 exits: [*Fac x2] / *Sto x2 / Low x2) -7/Storage -7/Recycling -5/Factory -4/Factory -3/Research -3/Testing -2/Research History --------- Turn | Location | Event 12 | -11/Scrapyard | Discovered new exit (range 15) 55 | -11/Scrapyard | Entered Materials 122 | -10/Materials | Identified exit to Mines 214 | -10/Materials | Entered Mines 225 | -10/Mines | Found a hidden stash of uninstalled traps 255 | -10/Mines | Assembled infested the area 260 | -10/Mines | Assisted by a Guerilla fighting off Assembled 303 | -10/Mines | Build established: Mutant 311 | -10/Mines | Learned Materials emergency access door positions 332 | -10/Mines | Learned Materials emergency access door positions 334 | -10/Mines | Discovered new exit (range 15) 351 | -10/Mines | Learned location of Storage (-7) 363 | -10/Mines | Found DCF Scrap (15 items) 387 | -10/Mines | Entered Materials 387 | -9/Materials | Evolved 2 slots: Utility x1, Weapon x1 679 | -9/Materials | Discovered new exit (range 16) 746 | -9/Materials | Build established: Tank 1040 | -9/Materials | Discovered new exit (range 15) 1292 | -9/Materials | Discovered new exit (range 16) 1433 | -9/Materials | Entered Mines 1438 | -9/Mines | Assisted by bots powering up and referring to "LRC-V3" 1446 | -9/Mines | Met a Derelict bent on vengeance 1674 | -9/Mines | Discovered new exit (range 14) 1698 | -9/Mines | Entered Materials 1698 | -8/Materials | Accompanied by 3 allies 1698 | -8/Materials | Evolved 2 slots: Propulsion x1, Utility x1 1977 | -8/Materials | Lost 3 allies 2091 | -8/Materials | Build established: Scavenger-Tank 2527 | -8/Materials | Destroyed 7 combat bots 2797 | -8/Materials | Build established: Tank 2925 | -8/Materials | Discovered new exit (range 9) 2946 | -8/Materials | Entered Factory 2946 | -7/Factory | Evolved 2 slots: Propulsion x1, Weapon x1 3225 | -7/Factory | Lost 5 parts (1p1n3w) 3477 | -7/Factory | Build established: Mutant 3778 | -7/Factory | Discovered new exit (range 4) 4241 | -7/Factory | Build established: Gladiator 4332 | -7/Factory | Discovered new exit (range 16) 4440 | -7/Factory | Lost 3 parts (1p2n) 4452 | -7/Factory | Identified exit to Storage 4452 | -7/Factory | Identified exit to Lower Caves 4703 | -7/Factory | Build established: Scavenger-Gladiator 4761 | -7/Factory | Entered Storage 4762 | -7/Storage | Identified exit to Recycling 5151 | -7/Storage | Used back door to open Recycling access 5156 | -7/Storage | Entered Recycling 5251 | -7/Recycling | Build established: Gladiator 5421 | -7/Recycling | Core integrity fell below 50% 5464 | -7/Recycling | Scanned before Scraplab entrance 5487 | -7/Recycling | Entered Scraplab 5491 | -7/Recycling | Angered Scraplab inhabitants 5493 | -7/Recycling | Found Prototype Device 5493 | -7/Recycling | Identified Scrap Engine 5533 | -7/Recycling | Lost 3 allies 5793 | -7/Recycling | Build established: Commander-Mutant 6527 | -7/Recycling | Build established: Commander-Construct 7509 | -7/Recycling | Discovered new exit (range 15) 7752 | -7/Recycling | Entered Factory 7752 | -5/Factory | Accompanied by 5 allies 7752 | -5/Factory | Evolved 4 slots: Power x1, Propulsion x1, Utility x2 7806 | -5/Factory | Found Hvy. Reactive Plating 7812 | -5/Factory | Found Hvy. Reactive Plating 7814 | -5/Factory | Found Hvy. Reactive Plating 8210 | -5/Factory | Lost 3 allies 8406 | -5/Factory | Build established: Construct 8573 | -5/Factory | Spotted B-75 Beast 8639 | -5/Factory | System corruption reached 10% 8898 | -5/Factory | Discovered new exit (range 6) 8903 | -5/Factory | Entered another Factory area 8903 | -4/Factory | Evolved 2 slots: Propulsion x1, Utility x1 9195 | -4/Factory | Build established: Mutant 9202 | -4/Factory | Discovered new exit (range 16) 9249 | -4/Factory | Entered Research 9249 | -3/Research | Evolved 2 slots: Propulsion x1, Utility x1 9469 | -3/Research | Spotted B-86 Titan 9674 | -3/Research | System corruption reached 10% 9971 | -3/Research | Discovered new exit (range 11) 9981 | -3/Research | Lost 4 parts (2u2w) 9992 | -3/Research | Found Fusion Bomb Launcher 9993 | -3/Research | Entered Testing 10138 | -3/Testing | Found Prototype Protection 10141 | -3/Testing | Found Prototype Protection 10141 | -3/Testing | Identified Lgt. Regenerative Plating 10144 | -3/Testing | Found Prototype Protection 10146 | -3/Testing | Found Prototype Protection 10167 | -3/Testing | Build established: Construct 10196 | -3/Testing | Identified SHELL Armor 10549 | -3/Testing | Spotted Striker 10551 | -3/Testing | Spotted Striker 10604 | -3/Testing | Scanned by Researcher 10669 | -3/Testing | Discovered new exit (range 11) 10691 | -3/Testing | Entered Research 10691 | -2/Research | Evolved 2 slots: Power x1, Utility x1 11193 | -2/Research | Found Gamma Bomb Array 11276 | -2/Research | Build established: Hacker-Gladiator 11442 | -2/Research | Destroyed 8 combat bots 11692 | -2/Research | Identified Hvy. Regenerative Plating (x2) 11752 | -2/Research | Lost 10 parts (2p5u3w) 12052 | -2/Research | Found Prototype Device 12052 | -2/Research | Identified Exp. Thermal Defense Suite 12113 | -2/Research | Build established: Mutant 12204 | -2/Research | System corruption reached 10% 12273 | -2/Research | Lost 3 parts (1p1n1u) 12442 | -2/Research | Lost 4 parts (1p2u1w) 12531 | -2/Research | Lost 6 parts (1p1n2u2w) 12609 | -2/Research | Self-destructed Last Messages --------------- 12534_ R-10 Processor collects Gamma Rifle. 12540_ The unstable cave ceiling collapses. 12547_ Arm. Scrap Engine constructs Rapid Electro Gamma Construct/G. 12552_ U-05 Engineer lays Concrete. 12553_ System corrupted: Energy discharge (-114). 12553_ U-05 Engineer lays Concrete. 12554_ U-05 Engineer builds a Wall. 12568_ System corrupted: Matter fused (-5). 12569_ K-01 Serf cleans the Scanalyzer. 12579_ Q820-x: IFF CHECK FAIL. 12580_ Arm. Scrap Engine consumes Enh. Hardcell Cannon. 12590_ System corrupted: Matter fused (-6). 12598_ Hovering Antigrav-QT Exoskeleton destroyed. 12598_ Hovering Antigrav-QT Exoskeleton core remains intact and functional. 12603_ Adv. Heat Sink destroyed. 12605_ System corrupted: Matter fused (-7). 12605_ Terminal disabled. 12606_ Arm. Scrap Engine destroyed. 12606_ Scrap Engine core remains intact and functional. Map ----- +----------------------------------------------------+ | ?????????????????????? ??????????????????????? | | ?????????????????????###+####????????????????????? | | ?????????????????????# #????????????????????? | | ?????????????????????# #????????????????????? | | ?????????????????????# ! #????????????????????? | | ?????????????????????# #????????????????????? | | ?????????????????????# !#????????????????????? | | ?????????????????????# #????????????????????? | | ?????????????????????###+####????????????????????? | | ???????????????????????# #???????????????????????? | | ???????????????????????# #???????????????????????? | | ????????????????????#### #???????????????????????? | | ????????????????????###"+####? #???????????????? | | ????????????????????# ## #???????????????? | | ????????????????????# ## #???????????????? | | ????????????????????# ! ## #???????????????? | | ????????????????????# ## +???????????????? | | ????????????????????# """## #???????????????? | | ????????????????????# """## #???????????????? | | ????????????????????# ! """## #???????????????? | | ????????????????????# """## #???????????????? | | ????##########??????# """## #???????????????? | | ????# #??????# ## ^#???????????????? | | ????# ######## ## ^^##??????????????? | | ????# """" # #######Q## #?????########?? | | ????# ""T" # @ p " #????## #?? | | ????# + " " #????? ]] #?? | | ????# # R #?????# ]] #?? | | ????# # ##+####### #?????# #?? | | ????# ### ### #?### ###?????# #?? | | ????# ! #?# #?# #???# #???????? ???? | | ????##########?# #?# ##### ###########+###### | | ???????????????# #?# + w | | ???????????????# #?# ""########/######## ###### | | ???????????????# #?# ""#????# #???# #????? | | ???????????????# #?# ""#????# !#???# #????? | | ???????????????# #?# S#????# #???# #????? | | ?????????????### ### ""#????# ##### ###### | | ?????????????# # ""#????# + | | ?????????????# "" # ""#????# # ###### | | ?????????????# "T + ############# ##???? | | ?????????????# # + ###### | | ?????????????# ############ #### ###%# # | | ?????????????###+####?????????# #??# ##%# # | | ?????????????# #?????????# #??# # # ## | | ?????????????# #?????????# ######## # | | ?????????????# ########### #???# #%# | | ?????????????# + #???# " | | ?????????????# #############???# | | ?????????????# #???????????????### # # | +----------------------------------------------------+ Best States ------------- Heat Dissipation 73 Energy Generation 56 Energy Capacity 857 Matter Stores 300 Matter Capacity 300 Sight Range 16 Robot Scan Range 18 Terrain Scan Range 16 Terrain Scan Density 10 Additional Mass Support 20 Armor Coverage 825 Resistance: KI 40 Core Shielding 40 Propulsion Shielding 66 Melee Speed Boost 50 Phase Shifting 5 Evasion (%) 79 Melee Accuracy 8 Recoil Reduction 6 Offensive Hacking 24 Defensive Hacking 14 Item Schematics ----------------- Imp. Matter Compressor | -3/Testing | Archive Imp. Matter Neutralizer | -3/Testing | Archive Robot Schematics ------------------ None Fabricated ------------ Nothing Repaired ---------- Nothing Alien Tech Used ----------------- None Achievements -------------- None Challenges ------------ None Game ------ Seed CarbideHellfireWeb Manual? 0 Play Time 02:02:05 Cumulative 271.0 hours Start 2025.06.09 @ 09:43:21 End 2025.06.29 @ 07:58:58 Sessions 7 Manual Loads 0 Difficulty Rogue Special Mode None Game No. 326 Rogue 282 Adventurer 4 Explorer 40 Win Type - Total 13 Types 9/1/2/1/0/0/0/0/0/0 Lore% 52 Gallery% 68 Achievement% 64 Wizard Run 0 Options --------- Layout 0 ASCII 0 Keyboard 0 Movement Numpad Keybinds 0 Fullscreen 2 Font 24/Smallcaps Map View 76x50 Zoom Use 0% Tactical HUD 1 Map Filters NONE Filters NONE Steam 1 RUN: 4b0bc317-5f95-4623-88f2-18e8c9f4d334